[Event "*** Biggest EVER Titled Tuesday"]
[Site "Chess.com"]
[Date "2018.04.17"]
[Round "4"]
[White "Eliwood44"]
[Black "ChessMavenYeti"]
[Result "1-0"]
[WhiteElo "2145"]
[BlackElo "2087"]
[TimeControl "180+2"]
[EndTime "13:51:28 PDT"]
[Termination "Eliwood44 won by resignation"]

1. d4 {[%clk 0:02:59.1]} 1... e6 {[%clk 0:02:58]} 2. Nf3 {[%clk 0:02:59.6]} 2...
d5 {[%clk 0:02:59.4]} 3. c4 {[%clk 0:02:59.3]} 3... Nf6 {[%clk 0:02:57.6]} 4.
Nc3 {[%clk 0:02:57.7]} 4... Be7 {[%clk 0:02:58.8]} 5. cxd5 {[%clk 0:02:52.1]}
5... exd5 {[%clk 0:02:59.5]} 6. Bf4 {[%clk 0:02:52.7]} 6... c6 {[%clk
0:03:00.3]} 7. e3 {[%clk 0:02:49.6]} 7... Bf5 {[%clk 0:03:01]} 8. h3 {[%clk
0:02:49.7]} 8... O-O {[%clk 0:03:01.3]} 9. Be2 {[%clk 0:02:50.7]} 9... Nbd7
{[%clk 0:02:59.8]} 10. O-O {[%clk 0:02:51.6]} 10... Re8 {[%clk 0:02:58.3]} 11.
a3 {[%clk 0:02:50.9]} 11... a5 {[%clk 0:02:58.5]} 12. Bd3 {[%clk 0:02:50.4]}
12... Bxd3 {[%clk 0:02:58.8]} 13. Qxd3 {[%clk 0:02:51.1]} 13... Bf8 {[%clk
0:02:59.9]} 14. Rab1 {[%clk 0:02:50]} 14... g6 {[%clk 0:02:58.6]} 15. b4 {[%clk
0:02:48.3]} 15... axb4 {[%clk 0:02:59.8]} 16. axb4 {[%clk 0:02:47]} 16... Ra3
{[%clk 0:02:54.2]} 17. Rfc1 {[%clk 0:02:47.1]} 17... b5 {[%clk 0:02:51.1]} 18.
Ra1 {[%clk 0:02:38.3]} 18... Qa8 {[%clk 0:02:48.3]} 19. Rxa3 {[%clk 0:02:33.8]}
19... Qxa3 {[%clk 0:02:50.2]} 20. Qc2 {[%clk 0:02:26.9]} 20... Bxb4 {[%clk
0:02:44.1]} 21. Nb1 {[%clk 0:02:26.7]} 21... Qa6 {[%clk 0:02:26.5]} 22. Qxc6
{[%clk 0:02:23]} 22... Qxc6 {[%clk 0:02:27.5]} 23. Rxc6 {[%clk 0:02:22.6]} 23...
Ra8 {[%clk 0:02:25.3]} 24. Nbd2 {[%clk 0:02:22]} 24... Bf8 {[%clk 0:02:19.4]}
25. Ne5 {[%clk 0:02:15.5]} 25... b4 {[%clk 0:02:09.6]} 26. Nxd7 {[%clk
0:02:13.5]} 26... Nxd7 {[%clk 0:02:11.5]} 27. Rc7 {[%clk 0:02:14.4]} 27... Nb6
{[%clk 0:02:03.6]} 28. Rb7 {[%clk 0:02:11.2]} 28... Nc4 {[%clk 0:02:04.7]} 29.
Nf3 {[%clk 0:02:11.6]} 29... Ra1+ {[%clk 0:01:56.3]} 30. Kh2 {[%clk 0:02:12.1]}
30... Kg7 {[%clk 0:01:56.6]} 31. Ng5 {[%clk 0:02:02.5]} 31... Nd6 {[%clk
0:01:43.3]} 32. Rd7 {[%clk 0:01:55]} 32... b3 {[%clk 0:01:39.4]} 33. Ne6+ {[%clk
0:01:55.1]} 33... Kg8 {[%clk 0:01:38.7]} 34. Nxf8 {[%clk 0:01:52]} 34... b2
{[%clk 0:01:31.8]} 35. Rd8 {[%clk 0:01:49.2]} 35... Nb7 {[%clk 0:01:16.1]} 36.
Rb8 {[%clk 0:01:45.4]} 36... Kg7 {[%clk 0:01:15]} 37. Ne6+ {[%clk 0:01:32.8]}
37... Kf6 {[%clk 0:01:10.8]} 38. Rxb7 {[%clk 0:01:31.1]} 38... b1=Q {[%clk
0:01:08.1]} 39. Rxb1 {[%clk 0:01:31.3]} 39... Rxb1 {[%clk 0:01:10]} 40. Nc7
{[%clk 0:01:31.2]} 40... Kf5 {[%clk 0:01:08.8]} 41. Nxd5 {[%clk 0:01:27.8]}
41... Ke4 {[%clk 0:01:10.1]} 42. Nc3+ {[%clk 0:01:28]} 1-0

[Event "*** Biggest EVER Titled Tuesday"]
[Site "Chess.com"]
[Date "2018.04.17"]
[Round "4"]
[White "maximlavrov"]
[Black "Aikiigm"]
[Result "1/2-1/2"]
[WhiteElo "2472"]
[BlackElo "2455"]
[TimeControl "180+2"]
[EndTime "13:51:29 PDT"]
[Termination "Game drawn by repetition"]

1. g3 {[%clk 0:03:01.9]} 1... h5 {[%clk 0:02:54.1]} 2. Nf3 {[%clk 0:02:56.6]}
2... d6 {[%clk 0:02:49.9]} 3. Bg2 {[%clk 0:02:57]} 3... e5 {[%clk 0:02:51]} 4.
c4 {[%clk 0:02:57.1]} 4... Be7 {[%clk 0:02:52.1]} 5. h3 {[%clk 0:02:56]} 5...
Nc6 {[%clk 0:02:51.4]} 6. Nc3 {[%clk 0:02:56.5]} 6... Be6 {[%clk 0:02:52.3]} 7.
b3 {[%clk 0:02:57]} 7... Qd7 {[%clk 0:02:53.4]} 8. d4 {[%clk 0:02:58]} 8... exd4
{[%clk 0:02:52.7]} 9. Nxd4 {[%clk 0:02:57]} 9... Nxd4 {[%clk 0:02:51.5]} 10.
Qxd4 {[%clk 0:02:58.9]} 10... Bf6 {[%clk 0:02:52.5]} 11. Qd2 {[%clk 0:02:59.8]}
11... c6 {[%clk 0:02:42.5]} 12. Bb2 {[%clk 0:03:00.7]} 12... Ne7 {[%clk
0:02:43.2]} 13. O-O-O {[%clk 0:02:56.9]} 13... O-O-O {[%clk 0:02:44]} 14. Ne4
{[%clk 0:02:44.7]} 14... Bxb2+ {[%clk 0:02:42.8]} 15. Qxb2 {[%clk 0:02:46.6]}
15... d5 {[%clk 0:02:29.2]} 16. Qxg7 {[%clk 0:02:46.5]} 16... Qc7 {[%clk
0:02:25.7]} 17. Nd2 {[%clk 0:01:35.7]} 17... dxc4 {[%clk 0:02:13.2]} 18. Nxc4
{[%clk 0:01:37.6]} 18... Bxc4 {[%clk 0:02:13.9]} 19. bxc4 {[%clk 0:01:39.5]}
19... Qa5 {[%clk 0:02:07.8]} 20. Qb2 {[%clk 0:01:40.1]} 20... Qc5 {[%clk
0:02:02.6]} 21. e3 {[%clk 0:01:32.9]} 21... Qxc4+ {[%clk 0:02:03]} 22. Kb1
{[%clk 0:01:34.3]} 22... h4 {[%clk 0:01:58]} 23. g4 {[%clk 0:01:34.4]} 23... Nd5
{[%clk 0:01:57.7]} 24. Rc1 {[%clk 0:01:35]} 24... Qd3+ {[%clk 0:01:55.6]} 25.
Ka1 {[%clk 0:01:35.7]} 25... Nb6 {[%clk 0:01:55.8]} 26. Rb1 {[%clk 0:01:15]}
26... Kb8 {[%clk 0:01:48]} 27. Rhc1 {[%clk 0:01:14.6]} 27... Rhe8 {[%clk
0:01:45.5]} 28. Qc3 {[%clk 0:01:12.6]} 28... Qxc3+ {[%clk 0:01:40]} 29. Rxc3
{[%clk 0:01:14.5]} 29... Rd2 {[%clk 0:01:40.9]} 30. Rf1 {[%clk 0:01:06.4]} 30...
Red8 {[%clk 0:01:41.1]} 31. Kb1 {[%clk 0:01:06.8]} 31... Na4 {[%clk 0:01:36]}
32. Rc2 {[%clk 0:01:08.1]} 32... Rd1+ {[%clk 0:01:31.2]} 33. Rxd1 {[%clk
0:01:09.1]} 33... Rxd1+ {[%clk 0:01:32.2]} 34. Rc1 {[%clk 0:01:11]} 34... Rd2
{[%clk 0:01:32.2]} 35. Rc2 {[%clk 0:01:12]} 35... Rd1+ {[%clk 0:01:28.4]} 36.
Rc1 {[%clk 0:01:12.5]} 36... Rd2 {[%clk 0:01:24.7]} 37. Rc2 {[%clk 0:01:13.3]}
37... Rd1+ {[%clk 0:01:22.1]} 38. Rc1 {[%clk 0:01:14.3]} 38... Rd2 {[%clk
0:01:23.4]} 39. Rc2 {[%clk 0:01:15.4]} 39... Rd1+ {[%clk 0:01:24.6]} 40. Rc1
{[%clk 0:01:16.6]} 40... Rd2 {[%clk 0:01:23.3]} 41. Rc2 {[%clk 0:01:17.5]} 41...
Rd1+ {[%clk 0:01:22.9]} 1/2-1/2

[Event "*** Biggest EVER Titled Tuesday"]
[Site "Chess.com"]
[Date "2018.04.17"]
[Round "4"]
[White "TST2014"]
[Black "PrinceMurad09"]
[Result "0-1"]
[WhiteElo "2332"]
[BlackElo "2350"]
[TimeControl "180+2"]
[EndTime "13:51:30 PDT"]
[Termination "PrinceMurad09 won by checkmate"]

1. d4 {[%clk 0:03:01.9]} 1... Nf6 {[%clk 0:02:58.8]} 2. c4 {[%clk 0:03:01.3]}
2... c5 {[%clk 0:02:59.5]} 3. d5 {[%clk 0:03:01.6]} 3... b5 {[%clk 0:03:00.6]}
4. cxb5 {[%clk 0:03:02.6]} 4... a6 {[%clk 0:03:01.6]} 5. e3 {[%clk 0:03:01.5]}
5... e6 {[%clk 0:02:58.6]} 6. Nc3 {[%clk 0:03:00]} 6... Bb7 {[%clk 0:02:59.4]}
7. e4 {[%clk 0:02:59.2]} 7... axb5 {[%clk 0:02:55.6]} 8. Bxb5 {[%clk 0:02:58.6]}
8... exd5 {[%clk 0:02:56.4]} 9. exd5 {[%clk 0:02:58.8]} 9... Bd6 {[%clk
0:02:56.8]} 10. Nf3 {[%clk 0:02:57.8]} 10... O-O {[%clk 0:02:55.9]} 11. O-O
{[%clk 0:02:59.3]} 11... Na6 {[%clk 0:02:53.9]} 12. Bg5 {[%clk 0:02:57.4]} 12...
h6 {[%clk 0:02:53.8]} 13. Ne4 {[%clk 0:02:57.4]} 13... hxg5 {[%clk 0:02:49]} 14.
Nxd6 {[%clk 0:02:57.6]} 14... Bxd5 {[%clk 0:02:48.7]} 15. Nxg5 {[%clk
0:02:54.1]} 15... Qb6 {[%clk 0:02:42.5]} 16. Nf5 {[%clk 0:02:46.9]} 16... Rfe8
{[%clk 0:01:32.9]} 17. a4 {[%clk 0:02:40.4]} 17... Nb4 {[%clk 0:01:30.8]} 18.
Ne3 {[%clk 0:02:24.8]} 18... Bb7 {[%clk 0:01:23.9]} 19. Nc4 {[%clk 0:02:24.8]}
19... Qc7 {[%clk 0:01:15]} 20. Qd6 {[%clk 0:02:24]} 20... Qd8 {[%clk 0:00:48.2]}
21. Rfe1 {[%clk 0:02:17.5]} 21... Nc2 {[%clk 0:00:43.7]} 22. Rxe8+ {[%clk
0:02:12.3]} 22... Qxe8 {[%clk 0:00:45.6]} 23. Rd1 {[%clk 0:02:07.1]} 23... Qe2
{[%clk 0:00:30.1]} 24. Ne3 {[%clk 0:02:06.1]} 24... Qh5 {[%clk 0:00:21]} 25.
Nxc2 {[%clk 0:01:50.2]} 25... Qxg5 {[%clk 0:00:21.5]} 26. Ne3 {[%clk 0:01:47]}
26... Re8 {[%clk 0:00:21.6]} 27. Qg3 {[%clk 0:01:42.2]} 27... Qh6 {[%clk
0:00:22.7]} 28. Nf5 {[%clk 0:01:41.3]} 28... Qh7 {[%clk 0:00:23.4]} 29. Bd3
{[%clk 0:01:42.4]} 29... Ne4 {[%clk 0:00:22.8]} 30. Bxe4 {[%clk 0:01:41.6]}
30... Bxe4 {[%clk 0:00:23.1]} 31. Ne7+ {[%clk 0:01:39.4]} 31... Kf8 {[%clk
0:00:22]} 32. Rxd7 {[%clk 0:01:38.8]} 32... Bc6 {[%clk 0:00:20.6]} 33. Rc7
{[%clk 0:01:34.2]} 33... Qb1# {[%clk 0:00:20.5]} 0-1

[Event "*** Biggest EVER Titled Tuesday"]
[Site "Chess.com"]
[Date "2018.04.17"]
[Round "4"]
[White "JustKid"]
[Black "Ravan_02"]
[Result "1-0"]
[WhiteElo "2469"]
[BlackElo "2449"]
[TimeControl "180+2"]
[EndTime "13:51:31 PDT"]
[Termination "JustKid won by resignation"]

1. d4 {[%clk 0:03:01.9]} 1... g6 {[%clk 0:02:59.5]} 2. Nf3 {[%clk 0:03:02.8]}
2... Bg7 {[%clk 0:03:01.4]} 3. c3 {[%clk 0:03:01.8]} 3... d6 {[%clk 0:03:03.3]}
4. h3 {[%clk 0:03:00.7]} 4... Nf6 {[%clk 0:03:04]} 5. Bf4 {[%clk 0:03:02.1]}
5... O-O {[%clk 0:03:04.5]} 6. e3 {[%clk 0:03:03.7]} 6... Nbd7 {[%clk
0:03:05.1]} 7. Bh2 {[%clk 0:03:04.5]} 7... b6 {[%clk 0:03:06.5]} 8. Be2 {[%clk
0:03:05.5]} 8... Bb7 {[%clk 0:03:07.9]} 9. O-O {[%clk 0:03:06.9]} 9... Re8
{[%clk 0:03:05.1]} 10. a4 {[%clk 0:03:04.8]} 10... a6 {[%clk 0:03:01.2]} 11. Qb3
{[%clk 0:03:02.6]} 11... c5 {[%clk 0:02:44.8]} 12. Nbd2 {[%clk 0:02:54.4]} 12...
Bd5 {[%clk 0:02:33.3]} 13. Qa3 {[%clk 0:02:50.5]} 13... e5 {[%clk 0:02:29.2]}
14. dxe5 {[%clk 0:02:38]} 14... dxe5 {[%clk 0:02:29.2]} 15. Rfd1 {[%clk
0:02:36.5]} 15... Qe7 {[%clk 0:02:22.1]} 16. Nc4 {[%clk 0:02:18.6]} 16... Bxc4
{[%clk 0:01:54.9]} 17. Bxc4 {[%clk 0:02:18]} 17... b5 {[%clk 0:01:56.8]} 18.
axb5 {[%clk 0:02:06.9]} 18... Nb6 {[%clk 0:01:57.9]} 19. Qb3 {[%clk 0:01:56.4]}
19... Nxc4 {[%clk 0:01:43.8]} 20. Qxc4 {[%clk 0:01:56.7]} 20... axb5 {[%clk
0:01:45.2]} 21. Qxb5 {[%clk 0:01:55.2]} 21... Rab8 {[%clk 0:01:46.2]} 22. Qc4
{[%clk 0:01:45.3]} 22... Nh5 {[%clk 0:01:11.6]} 23. g4 {[%clk 0:01:34.5]} 23...
Rxb2 {[%clk 0:01:00.2]} 24. gxh5 {[%clk 0:01:26.2]} 24... Qf6 {[%clk 0:01:01.3]}
25. Qg4 {[%clk 0:01:04.8]} 25... e4 {[%clk 0:00:59.7]} 26. Nd2 {[%clk
0:00:38.6]} 26... Qe5 {[%clk 0:00:40.4]} 27. Bxe5 {[%clk 0:00:38.8]} 1-0

[Event "*** Biggest EVER Titled Tuesday"]
[Site "Chess.com"]
[Date "2018.04.17"]
[Round "4"]
[White "Dr-Bassem"]
[Black "LawrenceTrent"]
[Result "1-0"]
[WhiteElo "2716"]
[BlackElo "2508"]
[TimeControl "180+2"]
[EndTime "13:51:32 PDT"]
[Termination "Dr-Bassem won by resignation"]

1. Nf3 {[%clk 0:03:01.9]} 1... g6 {[%clk 0:02:59.7]} 2. g3 {[%clk 0:03:01.1]}
2... Bg7 {[%clk 0:03:00.7]} 3. Bg2 {[%clk 0:03:02.6]} 3... Nf6 {[%clk
0:03:02.1]} 4. O-O {[%clk 0:03:04]} 4... O-O {[%clk 0:03:02.8]} 5. d3 {[%clk
0:03:05.5]} 5... c5 {[%clk 0:03:03]} 6. e4 {[%clk 0:03:06.2]} 6... Nc6 {[%clk
0:03:04.1]} 7. c3 {[%clk 0:03:05.8]} 7... Rb8 {[%clk 0:03:04.9]} 8. Re1 {[%clk
0:03:06.2]} 8... d6 {[%clk 0:03:06.1]} 9. h3 {[%clk 0:03:02]} 9... b5 {[%clk
0:03:07]} 10. a3 {[%clk 0:03:02.9]} 10... a5 {[%clk 0:03:08]} 11. d4 {[%clk
0:03:03.1]} 11... Nd7 {[%clk 0:03:08.3]} 12. Be3 {[%clk 0:02:57.5]} 12... b4
{[%clk 0:03:04.5]} 13. axb4 {[%clk 0:02:56.1]} 13... axb4 {[%clk 0:03:05.8]} 14.
Nbd2 {[%clk 0:02:56.3]} 14... bxc3 {[%clk 0:03:04.8]} 15. bxc3 {[%clk
0:02:58.2]} 15... cxd4 {[%clk 0:03:05.9]} 16. cxd4 {[%clk 0:02:59.7]} 16... Bb7
{[%clk 0:02:44.7]} 17. Nc4 {[%clk 0:02:40.1]} 17... Ra8 {[%clk 0:02:25]} 18. Qb3
{[%clk 0:02:31.3]} 18... Ba6 {[%clk 0:02:07.9]} 19. Bf1 {[%clk 0:02:18.9]} 19...
Rb8 {[%clk 0:02:06]} 20. Qc3 {[%clk 0:01:48.2]} 20... Bb7 {[%clk 0:01:33.5]} 21.
Rab1 {[%clk 0:01:38.1]} 21... Ba8 {[%clk 0:01:32.5]} 22. Qa3 {[%clk 0:01:14.5]}
22... Rxb1 {[%clk 0:00:56.2]} 23. Rxb1 {[%clk 0:01:16.4]} 23... Qc7 {[%clk
0:00:55.6]} 24. Rc1 {[%clk 0:01:05.9]} 24... Qa7 {[%clk 0:00:46.4]} 25. Qxa7
{[%clk 0:01:05.3]} 25... Nxa7 {[%clk 0:00:48.3]} 26. d5 {[%clk 0:01:06.4]} 26...
Nb5 {[%clk 0:00:44.2]} 27. Nb6 {[%clk 0:01:02.9]} 27... Nxb6 {[%clk 0:00:44.5]}
28. Bxb5 {[%clk 0:01:04.1]} 28... Nc8 {[%clk 0:00:36.2]} 29. Ba6 {[%clk
0:01:03.3]} 1-0

[Event "*** Biggest EVER Titled Tuesday"]
[Site "Chess.com"]
[Date "2018.04.17"]
[Round "4"]
[White "MITerryble"]
[Black "Gajuchess"]
[Result "1-0"]
[WhiteElo "2651"]
[BlackElo "2588"]
[TimeControl "180+2"]
[EndTime "13:51:51 PDT"]
[Termination "MITerryble won by resignation"]

1. d4 {[%clk 0:03:01.3]} 1... Nf6 {[%clk 0:03:00.6]} 2. Nf3 {[%clk 0:03:02.3]}
2... e6 {[%clk 0:03:01.3]} 3. c4 {[%clk 0:03:03]} 3... d5 {[%clk 0:03:02.3]} 4.
e3 {[%clk 0:03:03.7]} 4... Nbd7 {[%clk 0:03:00.6]} 5. b3 {[%clk 0:03:03.8]} 5...
b6 {[%clk 0:03:01.1]} 6. Bb2 {[%clk 0:03:04.5]} 6... Bd6 {[%clk 0:03:02]} 7. Bd3
{[%clk 0:03:05.4]} 7... Bb7 {[%clk 0:03:01.3]} 8. O-O {[%clk 0:03:06.3]} 8...
O-O {[%clk 0:03:01.9]} 9. Nbd2 {[%clk 0:03:06.4]} 9... Ne4 {[%clk 0:03:00.2]}
10. Qe2 {[%clk 0:02:52]} 10... Qf6 {[%clk 0:02:52.2]} 11. cxd5 {[%clk
0:02:44.1]} 11... exd5 {[%clk 0:02:52.9]} 12. Ba6 {[%clk 0:02:43.9]} 12... Bxa6
{[%clk 0:02:52.2]} 13. Qxa6 {[%clk 0:02:44.8]} 13... Qh6 {[%clk 0:02:35.1]} 14.
g3 {[%clk 0:02:44.1]} 14... Nxd2 {[%clk 0:02:26.5]} 15. Nxd2 {[%clk 0:02:44.4]}
15... Nf6 {[%clk 0:02:28.4]} 16. Kg2 {[%clk 0:02:42.4]} 16... Rfe8 {[%clk
0:02:28.2]} 17. Nf3 {[%clk 0:02:22.4]} 17... Ng4 {[%clk 0:02:16.6]} 18. h3
{[%clk 0:02:21.2]} 18... Nf6 {[%clk 0:02:17.2]} 19. Rac1 {[%clk 0:02:11.6]}
19... Ne4 {[%clk 0:02:15.2]} 20. Qb7 {[%clk 0:01:59]} 20... Rad8 {[%clk
0:02:11]} 21. Ne5 {[%clk 0:01:58.7]} 21... Bxe5 {[%clk 0:01:51]} 22. dxe5 {[%clk
0:01:59.7]} 22... c5 {[%clk 0:01:52.8]} 23. Rcd1 {[%clk 0:01:46.7]} 23... Qe6
{[%clk 0:01:51.6]} 24. h4 {[%clk 0:01:24.4]} 24... c4 {[%clk 0:00:47.8]} 25.
bxc4 {[%clk 0:01:24]} 25... Nc5 {[%clk 0:00:48.7]} 26. cxd5 {[%clk 0:01:22.5]}
26... Nxb7 {[%clk 0:00:37.5]} 27. dxe6 {[%clk 0:01:22.7]} 27... fxe6 {[%clk
0:00:39.4]} 28. Ba3 {[%clk 0:01:17.8]} 28... Rxd1 {[%clk 0:00:35.1]} 29. Rxd1
{[%clk 0:01:18]} 29... Rd8 {[%clk 0:00:37]} 30. Rc1 {[%clk 0:01:17.3]} 30... Rd2
{[%clk 0:00:21.1]} 31. Rc8+ {[%clk 0:01:08]} 31... Kf7 {[%clk 0:00:21.3]} 32.
Rc7+ {[%clk 0:01:08.2]} 1-0

[Event "*** Biggest EVER Titled Tuesday"]
[Site "Chess.com"]
[Date "2018.04.17"]
[Round "4"]
[White "leclash"]
[Black "underdogchss"]
[Result "0-1"]
[WhiteElo "2339"]
[BlackElo "2382"]
[TimeControl "180+2"]
[EndTime "13:51:51 PDT"]
[Termination "underdogchss won by resignation"]

1. d4 {[%clk 0:03:01.9]} 1... Nf6 {[%clk 0:03:00.4]} 2. c4 {[%clk 0:03:02.8]}
2... e6 {[%clk 0:03:01.6]} 3. Nc3 {[%clk 0:03:03.9]} 3... Bb4 {[%clk 0:03:01.8]}
4. Qc2 {[%clk 0:03:04.8]} 4... O-O {[%clk 0:03:02.4]} 5. e4 {[%clk 0:03:05.2]}
5... d5 {[%clk 0:02:57.7]} 6. e5 {[%clk 0:03:05.7]} 6... Ne4 {[%clk 0:02:58.6]}
7. Bd3 {[%clk 0:03:07.2]} 7... c5 {[%clk 0:02:58.9]} 8. cxd5 {[%clk 0:03:08.3]}
8... exd5 {[%clk 0:02:51.1]} 9. Ne2 {[%clk 0:03:09.4]} 9... cxd4 {[%clk
0:02:40.3]} 10. Nxd4 {[%clk 0:03:11.3]} 10... Nd7 {[%clk 0:02:17.7]} 11. f4
{[%clk 0:03:08.9]} 11... Ndc5 {[%clk 0:01:56.4]} 12. O-O {[%clk 0:03:05.2]}
12... Bxc3 {[%clk 0:01:04.8]} 13. bxc3 {[%clk 0:03:03.6]} 13... b6 {[%clk
0:00:48.8]} 14. f5 {[%clk 0:02:15.4]} 14... Re8 {[%clk 0:00:49.1]} 15. f6 {[%clk
0:01:54.4]} 15... Rxe5 {[%clk 0:00:48.1]} 16. Nc6 {[%clk 0:01:47.2]} 16... Qe8
{[%clk 0:00:49.1]} 17. Nxe5 {[%clk 0:01:44.1]} 17... Qxe5 {[%clk 0:00:50.2]} 18.
Bf4 {[%clk 0:01:35.6]} 18... Qxf6 {[%clk 0:00:48]} 19. Bd2 {[%clk 0:00:50.2]}
19... Qe5 {[%clk 0:00:48.4]} 20. Rae1 {[%clk 0:00:46.5]} 20... Bd7 {[%clk
0:00:30.8]} 21. c4 {[%clk 0:00:47]} 21... Qd4+ {[%clk 0:00:25.3]} 22. Kh1 {[%clk
0:00:41.9]} 22... Qxd3 {[%clk 0:00:24.8]} 23. Qxd3 {[%clk 0:00:38.6]} 23... Nxd3
{[%clk 0:00:25.9]} 24. Re2 {[%clk 0:00:37.9]} 24... Nxd2 {[%clk 0:00:20.1]} 25.
Rxd2 {[%clk 0:00:37]} 25... dxc4 {[%clk 0:00:21.2]} 0-1

[Event "*** Biggest EVER Titled Tuesday"]
[Site "Chess.com"]
[Date "2018.04.17"]
[Round "4"]
[White "FMJoseHerrera"]
[Black "AbdAlAgathos"]
[Result "0-1"]
[WhiteElo "2474"]
[BlackElo "2329"]
[TimeControl "180+2"]
[EndTime "13:52:04 PDT"]
[Termination "AbdAlAgathos won by resignation"]

1. Nf3 {[%clk 0:03:01.9]} 1... Nf6 {[%clk 0:03:00]} 2. g3 {[%clk 0:03:03.8]}
2... g6 {[%clk 0:03:00.6]} 3. Bg2 {[%clk 0:03:05.7]} 3... Bg7 {[%clk 0:03:01.8]}
4. O-O {[%clk 0:03:07.6]} 4... d5 {[%clk 0:03:03.1]} 5. d3 {[%clk 0:03:09.2]}
5... O-O {[%clk 0:03:03.4]} 6. c3 {[%clk 0:03:10.7]} 6... Re8 {[%clk 0:03:04.3]}
7. a3 {[%clk 0:03:12.1]} 7... e5 {[%clk 0:03:05]} 8. Ne1 {[%clk 0:03:12.9]} 8...
c6 {[%clk 0:02:50.1]} 9. Nd2 {[%clk 0:03:10.5]} 9... Nbd7 {[%clk 0:02:44.2]} 10.
Qc2 {[%clk 0:03:08.3]} 10... a5 {[%clk 0:02:43.6]} 11. b3 {[%clk 0:03:07.3]}
11... Nc5 {[%clk 0:02:39.4]} 12. Bb2 {[%clk 0:03:00]} 12... e4 {[%clk
0:02:28.6]} 13. d4 {[%clk 0:02:57.6]} 13... Ne6 {[%clk 0:02:24]} 14. e3 {[%clk
0:02:58.7]} 14... h5 {[%clk 0:02:19.1]} 15. c4 {[%clk 0:02:57.8]} 15... h4
{[%clk 0:02:18.1]} 16. Qd1 {[%clk 0:02:43.4]} 16... Ng5 {[%clk 0:02:10.5]} 17.
Bc1 {[%clk 0:02:31.9]} 17... Bg4 {[%clk 0:01:49.8]} 18. f3 {[%clk 0:02:31.8]}
18... exf3 {[%clk 0:01:50.2]} 19. Ndxf3 {[%clk 0:02:33.7]} 19... hxg3 {[%clk
0:01:47.1]} 20. hxg3 {[%clk 0:02:34.7]} 20... Nfe4 {[%clk 0:01:44.5]} 21. Kh2
{[%clk 0:02:21.1]} 21... Qd6 {[%clk 0:01:33.5]} 22. Ra2 {[%clk 0:01:15.4]} 22...
Nxg3 {[%clk 0:01:23.3]} 23. Kg1 {[%clk 0:01:16.7]} 23... Nxf1 {[%clk 0:01:20.1]}
24. Kxf1 {[%clk 0:01:18.6]} 24... Qg3 {[%clk 0:01:15.6]} 25. cxd5 {[%clk
0:01:17.5]} 25... cxd5 {[%clk 0:01:08.1]} 26. Rf2 {[%clk 0:01:18.1]} 26... Ne4
{[%clk 0:01:05.2]} 27. Ra2 {[%clk 0:01:19]} 27... Rac8 {[%clk 0:01:01.4]} 28.
Nd3 {[%clk 0:01:15.7]} 28... Nc3 {[%clk 0:00:58.1]} 29. Qd2 {[%clk 0:00:22.3]}
29... Nxa2 {[%clk 0:00:45.8]} 30. Qxa2 {[%clk 0:00:24.2]} 30... Bxf3 {[%clk
0:00:46.7]} 31. Qf2 {[%clk 0:00:22.3]} 31... Qxg2+ {[%clk 0:00:46.3]} 32. Qxg2
{[%clk 0:00:24.2]} 32... Bxg2+ {[%clk 0:00:47.7]} 33. Kxg2 {[%clk 0:00:25.6]}
33... Rc3 {[%clk 0:00:48.9]} 34. Kf3 {[%clk 0:00:27.1]} 34... Rxd3 {[%clk
0:00:50]} 0-1

[Event "*** Biggest EVER Titled Tuesday"]
[Site "Chess.com"]
[Date "2018.04.17"]
[Round "4"]
[White "Nutflush"]
[Black "sandager"]
[Result "1-0"]
[WhiteElo "2040"]
[BlackElo "1941"]
[TimeControl "180+2"]
[EndTime "13:52:04 PDT"]
[Termination "Nutflush won by resignation"]

1. e4 {[%clk 0:03:01.9]} 1... e5 {[%clk 0:03:00.6]} 2. Nf3 {[%clk 0:03:02.4]}
2... Nc6 {[%clk 0:03:02]} 3. Bc4 {[%clk 0:03:03.6]} 3... Bc5 {[%clk 0:03:01.6]}
4. c3 {[%clk 0:03:04.7]} 4... Nf6 {[%clk 0:03:01.3]} 5. d4 {[%clk 0:03:04.7]}
5... exd4 {[%clk 0:03:02]} 6. O-O {[%clk 0:03:06.2]} 6... Nxe4 {[%clk
0:02:39.1]} 7. cxd4 {[%clk 0:03:06.9]} 7... Be7 {[%clk 0:02:25.7]} 8. d5 {[%clk
0:03:06.9]} 8... Nd6 {[%clk 0:02:19.6]} 9. Bb3 {[%clk 0:02:47.9]} 9... Na5
{[%clk 0:02:17.9]} 10. Bc2 {[%clk 0:02:48.2]} 10... O-O {[%clk 0:02:17.3]} 11.
Qd3 {[%clk 0:02:45.5]} 11... g6 {[%clk 0:02:15.9]} 12. Bh6 {[%clk 0:02:40.8]}
12... Re8 {[%clk 0:02:15.3]} 13. Qc3 {[%clk 0:02:34.7]} 13... Bf6 {[%clk
0:02:06.4]} 14. Qxa5 {[%clk 0:02:35.5]} 14... Ne4 {[%clk 0:02:05.5]} 15. Nc3
{[%clk 0:02:25.1]} 15... Nxc3 {[%clk 0:02:02.8]} 16. bxc3 {[%clk 0:02:25.4]}
16... d6 {[%clk 0:02:03.7]} 17. Rae1 {[%clk 0:02:21]} 17... Bg4 {[%clk
0:01:40.3]} 18. Qb4 {[%clk 0:02:11.6]} 18... Bxf3 {[%clk 0:01:37.5]} 19. gxf3
{[%clk 0:02:09.6]} 19... Qd7 {[%clk 0:01:37]} 20. Qf4 {[%clk 0:02:03.6]} 20...
Bxc3 {[%clk 0:01:15.2]} 21. Re4 {[%clk 0:01:55.3]} 21... Qh3 {[%clk 0:01:06]}
22. Bg5 {[%clk 0:01:45.9]} 22... Be5 {[%clk 0:01:01.7]} 23. Qh4 {[%clk
0:01:43.5]} 23... Bxh2+ {[%clk 0:00:45.8]} 24. Kh1 {[%clk 0:01:44.6]} 24...
Qxf1+ {[%clk 0:00:45.6]} 25. Kxh2 {[%clk 0:01:45.8]} 25... Rxe4 {[%clk
0:00:44.6]} 26. Bxe4 {[%clk 0:01:45.2]} 26... h5 {[%clk 0:00:36.6]} 27. Be3
{[%clk 0:01:44.6]} 27... Qa1 {[%clk 0:00:22]} 28. Qg5 {[%clk 0:01:36.1]} 28...
Qg7 {[%clk 0:00:21.4]} 29. Qe7 {[%clk 0:01:28.1]} 29... Rc8 {[%clk 0:00:18.6]}
30. Qd7 {[%clk 0:01:26.3]} 30... Qf8 {[%clk 0:00:19]} 31. Bd4 {[%clk 0:01:21]}
31... Qe8 {[%clk 0:00:19.9]} 32. Qh3 {[%clk 0:01:18.4]} 32... f5 {[%clk
0:00:18.8]} 33. Bxf5 {[%clk 0:01:05.9]} 33... gxf5 {[%clk 0:00:18.3]} 34. Qg3+
{[%clk 0:01:06.9]} 1-0